bitfinex-derivatives/quotes_ETHF0:USTF0_20251003
["timestamp","ask_amount","ask_price","bid_price","bid_amount"]
[1759496984294,0.00238993,4463.6,4463.5,1.27394]
[1759496984996,0.20858993,4463.6,4463.5,1.27394]
[1759496985594,0.00238993,4463.6,4463.5,1.27394]
[1759496986989,0.00238993,4463.6,4463.5,1.49794]
[1759496987994,5.21700699,4467.7,4463.5,1.49794]
[1759496988191,0.3035,4466.9,4466.1,0.3271]
[1759496988386,3.2078,4467.8,4466.8,3.2078]
[1759496988587,3.2078,4467.8,4466.9,0.224]
[1759496988888,3.2078,4467.8,4467.5,0.52658]
[1759496988889,0.00197751,4467.8,4467.5,0.52658]
[1759496989086,3.2078,4468.4,4467.7,0.3271]
[1759496989287,3.2078,4468.4,4468.0,0.3271]
[1759496989488,3.2078,4468.4,4468.0,0.5511]
[1759496989699,3.2078,4468.4,4468.1,0.3271]
[1759496989996,0.00232389,4468.4,4468.1,0.92836092]
[1759496990304,3.2078,4468.6,4468.2,0.224]
[1759496990790,0.40249,4468.5,4468.2,0.5511]
[1759496991286,0.40251,4468.3,4468.2,0.5511]
[1759496991491,0.4025,4468.4,4468.2,0.224]
[1759496991691,0.4025,4468.4,4468.3,0.3271]
[1759496993099,0.4025,4468.4,4468.0,0.124]
[1759496993100,5.0,4468.4,4468.0,0.124]
[1759496993293,5.0,4468.4,4467.7,0.3271]
[1759496993294,0.40255,4467.9,4467.7,0.3271]
[1759496993492,0.40255,4467.9,4467.7,0.5511]
[1759496993691,0.0026,4468.5,4467.8,0.3271]
[1759496993902,0.0026,4468.5,4468.1,0.3271]
[1759496994201,0.40252,4468.2,4468.1,0.3271]
[1759496995787,0.0026,4468.5,4468.1,0.3271]
[1759496995993,0.0026,4468.5,4468.4,0.2089]
[1759496996194,0.0026,4468.5,4468.4,0.536]
[1759497000292,0.0026,4468.5,4468.4,0.747]
[1759497000898,0.0026,4468.5,4468.4,3.9548]
[1759497001203,1.00596,4469.8,4469.7,0.747]
[1759497001204,3.2078,4469.8,4469.7,0.747]
[1759497001500,3.2078,4469.8,4469.5,0.124]
[1759497001501,0.40234,4470.2,4470.1,0.3271]
[1759497001699,0.62634,4470.2,4470.1,0.3271]
[1759497002298,0.6287693,4470.2,4470.1,0.32961389]
[1759497002499,0.0024293,4470.2,4470.1,0.32961389]
[1759497003302,0.4023,4470.7,4470.6,0.3284]
[1759497004200,0.40422551,4470.7,4470.6,0.3284]
[1759497006809,0.40422551,4470.7,4470.6,0.5483]
[1759497007007,0.40422551,4470.7,4470.6,0.7531]
[1759497008106,0.2025,4470.6,4470.1,0.00251389]
[1759497008311,1.10824,4470.2,4470.1,0.00251389]
[1759497008510,1.33224,4470.2,4470.1,0.00251389]
[1759497010511,6.33224,4470.2,4470.1,0.00251389]
[1759497012211,0.81279,4469.6,4469.4,0.3284]
[1759497012417,0.7059,4469.5,4469.4,0.3284]
[1759497013417,0.7059,4469.5,4469.4,0.0024665]
[1759497014411,0.7059,4469.5,4469.4,6.5e-06]
[1759497015218,5.8044,4469.5,4469.4,6.5e-06]
[1759497018114,5.9299,4469.5,4469.4,6.5e-06]
[1759497018317,0.8343,4469.5,4469.4,0.7531065]
[1759497019021,1.0368,4469.5,4469.4,0.7531065]
[1759497020020,1.3323,4469.5,4469.4,0.5483065]
[1759497020324,6.0368,4469.5,4469.4,6.5e-06]
[1759497024624,0.61034,4469.1,4469.0,1.48026092]
[1759497024927,0.83434,4469.1,4469.0,1.48026092]
[1759497025721,0.83434,4469.1,4469.0,1.48216186]
[1759497026322,0.83434,4469.1,4469.0,1.48214383]
[1759497026723,0.83434,4469.1,4469.0,0.88090094]
[1759497027318,0.40244,4469.1,4469.0,0.88090094]
[1759497027625,0.62644,4469.1,4469.0,0.88090094]
[1759497028621,0.40244,4469.1,4469.0,0.88090094]
[1759497029220,0.40244,4469.1,4469.0,1.68258217]
[1759497030021,0.83277,4468.8,4468.7,1.2027063]
[1759497030222,0.9324,4468.4,4468.3,3.6336]
[1759497030623,0.7245,4468.4,4468.3,3.6336]
[1759497031019,0.7245,4468.4,4468.3,3.6357495]
[1759497031721,0.322,4468.8,4468.3,3.6357495]
[1759497031925,0.4025,4468.6,4468.5,0.84519]
[1759497032116,0.4025,4468.6,4468.5,1.03019]
[1759497032321,0.4025,4468.6,4468.5,0.6277]
[1759497033128,0.5314,4469.5,4469.4,0.4427]
[1759497033323,0.9722,4469.5,4469.4,0.4427]
[1759497033624,0.8574,4469.5,4469.4,0.6277]
[1759497033826,0.8574,4469.5,4469.4,1.22933805]
[1759497034428,0.8574,4469.5,4469.4,0.6277]
[1759497034631,0.7284,4469.5,4469.4,0.6277]
[1759497034825,0.4024,4469.5,4469.4,0.6277]
[1759497035719,0.55,4470.3,4469.4,5.4427]
[1759497035933,0.9867,4470.3,4470.2,0.2232]
[1759497036627,1.38903,4470.3,4470.2,0.2232]
[1759497036923,1.38903,4470.3,4469.3,3.2078]
[1759497036924,0.96636,4470.0,4469.8,0.60188356]
[1759497037132,0.7627,4469.9,4469.8,0.60188356]
[1759497038135,0.9867,4469.9,4469.8,0.60188356]
[1759497038322,0.5428,4469.7,4469.0,0.40245]
[1759497038829,0.40244,4469.2,4469.1,0.40244]
[1759497039724,0.40242,4469.4,4469.3,0.40242]
[1759497039928,0.1273,4470.0,4469.5,0.4024]
[1759497040130,0.72839,4469.7,4469.3,3.2078]
[1759497040319,0.326,4469.6,4469.5,0.4024]
[1759497041230,0.326,4469.6,4469.4,0.40241]
[1759497041427,0.4533,4470.0,4469.8,0.40237]
[1759497041627,0.4533,4470.0,4469.8,3.61017]
[1759497042131,0.4533,4470.0,4469.9,0.40237]
[1759497043630,0.3441,4470.0,4469.8,3.2078]
[1759497043831,0.326,4469.9,4469.8,3.2078]
[1759497044032,0.326,4469.9,4469.8,3.61018]
[1759497044530,0.326,4469.9,4469.8,3.83418]
[1759497046036,0.326,4469.9,4469.8,3.4318]
[1759497046236,0.326,4469.9,4469.8,3.83418]
[1759497047432,0.326,4470.3,4470.1,0.40234]
[1759497047634,0.326,4470.3,4470.2,0.60164791]
[1759497048037,0.7627,4470.3,4470.1,0.224]
[1759497048242,0.7627,4469.9,4469.8,3.2078]
[1759497048738,0.4367,4469.9,4469.5,0.6264]
[1759497048933,0.326,4469.8,4469.5,0.6264]
[1759497049134,0.5428,4469.6,4469.5,0.6264]
[1759497050129,0.5428,4469.6,4469.5,1.82960698]
[1759497050338,0.40244,4469.2,4469.0,4.81453588]
[1759497050534,0.326,4469.1,4469.0,3.61025]
[1759497050732,0.326,4469.1,4469.0,0.62645]
[1759497051138,0.1273,4469.5,4468.5,4.21403]
[1759497051139,0.326,4468.9,4468.8,0.40246]
[1759497051328,0.326,4468.9,4468.8,0.62646]
[1759497051532,0.72846,4468.9,4468.8,0.62646]
[1759497052935,0.94526,4468.9,4468.8,0.62646]
[1759497053635,0.94526,4468.9,4468.8,0.224]
[1759497055048,1.1652,4468.4,4468.3,2.01138538]
[1759497055240,1.1652,4468.4,4468.3,0.6286495]
[1759497056254,0.5428,4468.4,4468.3,0.2261495]
[1759497056749,0.7627,4468.4,4468.3,0.2261495]
[1759497058347,0.7627,4468.4,4468.3,0.6286595]
[1759497058743,1.1652,4468.4,4468.3,0.6286595]
[1759497059146,0.7627,4468.4,4468.3,0.6286595]
[1759497060149,0.1273,4468.5,4468.3,0.2261495]
[1759497060344,0.4533,4468.5,4468.4,0.4025]
[1759497060542,1.07259,4468.5,4468.4,0.4025]
[1759497061552,0.6701,4468.5,4468.4,0.4025]
[1759497062051,0.1273,4469.0,4468.9,0.40246]
[1759497062255,0.678,4469.0,4468.9,0.40246]
[1759497062451,0.4616,4469.0,4468.9,0.40246]
[1759497063047,0.86405,4469.0,4468.9,0.40246]
[1759497063253,1.08045,4469.0,4468.9,0.40246]
[1759497063745,0.678,4469.0,4468.9,0.40246]
[1759497063951,0.3437,4469.0,4468.7,0.224]
[1759497064146,0.61886,4468.9,4468.8,0.40246]
[1759497064352,0.95316,4468.9,4468.8,0.40246]
[1759497065151,1.17196,4468.9,4468.8,0.40246]
[1759497065558,0.5507,4468.9,4468.8,0.40246]
[1759497068254,0.3343,4468.9,4468.8,0.40246]
[1759497068756,0.5507,4468.9,4468.8,0.40246]
[1759497068950,0.3343,4468.9,4468.8,0.40246]
[1759497069153,0.3343,4468.9,4468.8,2.00919588]
[1759497069762,0.3343,4469.2,4468.7,0.224]
[1759497069959,0.3343,4469.2,4469.1,5.21628552]
[1759497070149,0.4616,4469.5,4469.4,0.40241]
[1759497070353,0.4616,4469.5,4469.4,2.23222501]
[1759497071257,0.4616,4469.5,4469.4,0.62641]
[1759497072051,0.4616,4469.5,4469.4,2.23222501]
[1759497072562,0.4616,4469.5,4469.4,0.62641]
[1759497073071,0.8968,4470.0,4469.9,0.40237]
[1759497073260,0.8968,4470.0,4469.9,1.83046956]
[1759497075160,0.8968,4470.0,4469.9,0.62637]
[1759497075362,0.8968,4470.0,4469.9,1.83046956]
[1759497075764,0.8968,4470.0,4469.9,0.62637]
[1759497078463,0.4616,4470.0,4469.9,0.62637]
[1759497078856,0.6876,4470.5,4470.4,0.40232]
[1759497079062,0.6876,4470.5,4470.4,0.62632]
[1759497079665,0.6876,4470.5,4470.4,1.82987399]
[1759497079865,0.6876,4470.5,4470.4,0.62632]
[1759497080261,0.6876,4470.5,4470.4,1.82917954]
[1759497081669,0.9064,4470.5,4470.4,0.224]
[1759497081967,0.3343,4470.4,4470.3,4.41065954]
[1759497082171,0.7695,4470.4,4470.3,0.224]
[1759497082366,0.7695,4470.4,4470.3,0.62633]
[1759497084173,0.7695,4470.4,4470.3,1.42770615]
[1759497084874,0.7695,4470.4,4470.3,0.62633]
[1759497085965,0.5507,4470.4,4470.3,1.82918954]
[1759497086571,0.3343,4470.4,4470.3,1.82918954]
[1759497087273,0.3343,4470.4,4470.3,0.62633]
[1759497087469,0.3241,4470.8,4470.3,1.22982]
[1759497087673,0.32602551,4470.7,4470.6,0.4023]
[1759497087873,0.32602551,4470.7,4470.6,0.6263]
[1759497088470,0.32602551,4470.7,4470.6,5.03582945]
[1759497089377,0.55002551,4470.7,4470.6,5.03582945]
[1759497090079,0.55002551,4470.7,4470.6,3.8341]
[1759497090277,0.78712551,4470.7,4470.6,3.8341]
[1759497091080,0.78712551,4470.7,4470.6,5.03582945]
[1759497092978,0.78712551,4470.7,4470.6,3.4318]
[1759497093381,0.78712551,4470.7,4470.6,3.8341]
[1759497094080,0.00192551,4470.7,4470.6,5.03582945]
[1759497094280,0.592,4471.0,4470.6,3.4318]
[1759497094483,0.4496,4470.7,4470.6,0.224]
[1759497094685,0.8031,4470.7,4470.6,0.224]
[1759497095181,5.804775,4470.7,4470.6,0.224]
[1759497095388,5.451275,4470.7,4470.4,0.224]
[1759497095594,0.9455,4470.5,4470.4,0.224]
[1759497098283,0.9455,4470.5,4470.4,1.0254862]
[1759497098490,0.9455,4470.5,4470.4,0.224]
[1759497099295,0.592,4470.5,4470.3,0.8014862]
[1759497099494,0.8031,4470.4,4470.3,0.8014862]
[1759497099799,0.3535,4470.3,4470.2,0.8014862]
[1759497099992,0.8031,4470.3,4470.2,0.8014862]
[1759497100190,0.8031,4470.3,4470.1,0.224]
[1759497102492,0.8031,4470.3,4470.1,1.42622931]
[1759497102695,0.8031,4470.2,4470.1,1.42622931]
[1759497103496,0.8031,4470.2,4470.1,1.66442931]
[1759497107998,0.5701,4470.6,4470.5,0.86981]
[1759497108194,0.8031,4470.6,4470.5,0.4675]
[1759497108396,0.8031,4470.6,4470.5,0.2382]
[1759497109098,0.4496,4470.6,4470.4,1.02733904]
[1759497109398,0.9455,4470.5,4470.4,1.02733904]
[1759497109597,0.9455,4470.5,4470.4,1.26553904]
[1759497112193,0.9455,4470.5,4470.4,1.02733904]
[1759497112394,0.9455,4470.5,4469.4,1.60581501]
[1759497112395,0.1424,4469.5,4469.4,1.60581501]
[1759497112593,0.8031,4469.2,4469.1,0.2382]
[1759497112799,0.8031,4469.2,4469.1,0.4622]
[1759497114806,0.8031,4469.2,4469.1,0.224]
[1759497120308,0.8031,4469.2,4469.1,0.4622]
[1759497120811,1.20553,4469.2,4469.1,0.224]
[1759497125914,1.18958,4468.7,4468.6,0.86128]
[1759497132210,0.7871,4468.7,4468.6,0.86128]
[1759497132414,0.7871,4468.7,4468.6,1.09158]
[1759497133513,0.3465,4469.3,4469.1,0.62714]
[1759497133813,3.7908,4470.0,4469.9,1.20207]
[1759497134114,4.19316,4470.0,4469.9,1.20207]
[1759497134613,3.6484,4470.0,4469.9,0.7997]
[1759497134813,3.2078,4470.0,4469.9,0.7997]
[1759497135117,4.0507,4470.6,4470.5,0.7997]
[1759497135827,4.3972,4470.6,4470.5,0.7997]
[1759497136120,0.7871,4470.4,4470.3,0.224]
[1759497136613,5.7871,4470.4,4469.9,1.20372175]
[1759497136811,4.1371,4470.0,4469.8,1.42772175]
[1759497137012,0.7871,4469.9,4469.8,1.42772175]
[1759497137212,0.7871,4469.9,4469.8,1.66252175]
[1759497137817,0.7871,4469.9,4469.8,2.22742175]
[1759497138020,0.7871,4469.9,4469.8,1.0237]
[1759497138617,0.7871,4469.9,4469.8,0.6891]
[1759497140323,0.7871,4469.9,4469.8,2.22742175]
[1759497140817,3.35,4470.5,4469.8,2.22742175]
[1759497141022,3.7906,4470.5,4470.4,0.7997]
[1759497141224,3.7906,4470.5,4470.4,1.0237]
[1759497141518,4.1371,4470.5,4470.4,1.0237]
[1759497141725,0.3465,4470.5,4470.4,1.0237]
[1759497141922,0.571375,4470.7,4470.6,0.4651]
[1759497142118,0.571375,4470.7,4470.6,0.7997]
[1759497143216,0.224875,4470.7,4470.6,0.7997]
[1759497144018,0.001675,4470.7,4470.6,0.7997]
[1759497144616,0.001675,4470.7,4470.6,1.60252252]
[1759497144822,0.001675,4470.7,4470.6,0.7997]
[1759497146220,0.001675,4470.7,4470.6,2.00248409]
[1759497146616,0.001675,4470.7,4470.6,5.7997]
[1759497147223,0.001675,4470.7,4470.6,7.00159949]
[1759497147724,0.001675,4470.7,4470.6,5.7997]
[1759497148224,0.001675,4470.7,4470.6,7.00119256]
[1759497149529,0.7852,4471.8,4471.7,0.7821]
[1759497149833,0.7852,4471.8,4471.7,1.0061]
[1759497150326,0.7872084,4471.8,4471.7,1.00791046]
[1759497152725,0.7872084,4471.8,4471.7,0.46321046]
[1759497153522,0.7872084,4471.8,4471.7,0.00181046]
[1759497155321,0.7872084,4471.8,4471.7,0.23911046]
[1759497155523,5.7872084,4471.8,4471.7,0.00181046]
[1759497158731,0.7872084,4471.8,4471.7,0.00181046]
[1759497159939,5.7872084,4471.8,4471.7,0.00181046]
[1759497160536,0.4531,4470.9,4470.6,0.6263]
[1759497160829,0.7856,4470.8,4470.7,0.4596]
[1759497161031,0.5685,4470.8,4470.7,1.1874]
[1759497161223,0.5685,4470.8,4470.7,1.98809323]
[1759497161430,0.5685,4470.8,4470.7,1.18925106]
[1759497161626,0.5685,4470.8,4470.7,1.98994429]
[1759497161826,0.236,4470.8,4470.7,1.98994429]
[1759497162028,0.5685,4470.8,4470.7,1.98994429]
[1759497162222,0.7856,4470.8,4470.7,1.58764429]
[1759497162425,0.7856,4470.8,4470.7,1.98994429]
[1759497162630,0.5685,4471.0,4470.9,0.72777]
[1759497162932,0.5685,4471.0,4470.9,1.18737]
[1759497164133,0.7856,4471.0,4470.9,0.7851]
[1759497164330,0.4531,4470.8,4470.7,0.80254429]
[1759497164531,0.7856,4470.8,4470.7,0.80254429]
[1759497164930,0.7856,4470.8,4470.7,0.00185106]
[1759497166241,5.7856,4470.8,4470.7,0.00185106]
[1759497167531,5.7856,4470.8,4470.0,0.224]
[1759497167532,0.7856,4470.1,4470.0,0.224]
[1759497168538,0.7856,4470.1,4470.0,0.22635834]
[1759497169343,0.7856,4470.1,4470.0,0.68595834]
[1759497169539,3.7763,4470.3,4470.2,0.4596]
[1759497169740,3.9934,4470.3,4470.0,1.02705157]
[1759497169943,0.3325,4470.2,4470.1,0.2373]
[1759497170150,0.7856,4470.2,4470.1,0.2373]
[1759497170742,0.7856,4470.1,4470.0,0.22635834]
[1759497172148,0.7856,4470.1,4470.0,0.46365834]
[1759497172739,3.2078,4470.3,4470.1,0.40235]
[1759497173050,3.4438,4470.3,4470.2,1.58768311]
[1759497173249,3.7763,4470.3,4470.2,0.7851]
[1759497173444,3.9934,4470.3,4470.2,0.7851]
[1759497173644,3.9934,4470.3,4470.2,1.18744]
[1759497174647,0.7856,4470.3,4470.2,1.18744]
[1759497176452,0.236,4470.3,4470.2,1.18744]
[1759497176957,0.5685,4470.3,4470.2,1.18744]
[1759497177556,0.7856,4470.3,4470.2,1.18744]
[1759497180353,0.5685,4470.5,4470.4,1.18742]
[1759497180557,0.5685,4470.5,4470.4,1.41142]
[1759497180848,0.3325,4470.9,4470.8,0.2223]
[1759497181153,0.5685,4470.9,4470.8,0.4596]
[1759497181449,0.7856,4471.3,4471.2,0.2373]
[1759497182054,0.7856,4471.3,4471.2,0.8106]
[1759497182255,0.7856,4471.3,4471.2,1.21285]
[1759497182958,3.2078,4471.4,4471.3,1.19564]
[1759497183150,3.2078,4471.4,4471.3,2.22198831]
[1759497183455,3.4338,4471.4,4471.3,2.22198831]
[1759497183756,0.226,4471.4,4471.3,1.41964]
[1759497184252,3.2078,4472.0,4471.7,0.7934]
[1759497184556,3.2078,4472.0,4471.7,1.0174]
[1759497185055,0.2280084,4471.8,4471.7,1.0174]
[1759497185256,0.5760084,4471.8,4471.7,1.0174]
[1759497187156,0.5760084,4471.8,4471.7,1.81959171]
[1759497187456,0.5760084,4471.8,4471.7,1.81940654]
[1759497189346,0.0020084,4471.8,4471.7,1.81940654]
[1759497189548,3.2078,4472.5,4472.4,0.7934]
[1759497189756,3.2078,4472.5,4472.4,1.0174]
[1759497190559,0.00181302,4472.5,4472.4,1.0174]
[1759497191452,3.20961302,4472.5,4472.4,1.0174]
[1759497191658,3.78361302,4472.5,4472.4,1.0174]
[1759497195553,4.00611302,4472.5,4472.4,1.0174]
[1759497198061,4.00611302,4472.5,4472.4,1.41954]
[1759497200860,4.14681302,4472.5,4472.4,1.41954]
[1759497201961,0.79831302,4472.5,4472.4,1.41954]
[1759497203068,0.22781302,4472.5,4472.4,1.41954]
[1759497203368,0.57581302,4472.5,4472.4,1.41954]
[1759497205361,0.00181302,4472.5,4472.4,1.41954]
[1759497205960,0.93901302,4472.5,4472.4,0.85334]
[1759497206263,0.93901302,4472.5,4472.4,1.40584]
[1759497209572,0.93901302,4472.5,4472.4,2.20752344]
[1759497211064,0.93901302,4472.5,4472.4,1.40584]
[1759497211271,0.93901302,4472.5,4472.4,2.20752344]
[1759497211968,0.93901302,4472.5,4472.4,1.25288344]
[1759497212168,0.93901302,4472.5,4472.4,0.224]
[1759497212370,0.93901302,4472.5,4472.4,1.42782344]
[1759497212665,0.93901302,4472.5,4472.4,0.84864]
[1759497213370,0.93901302,4472.5,4472.4,2.04967985]
[1759497214167,0.93901302,4472.5,4472.4,0.84864]
[1759497214368,0.93901302,4472.5,4472.4,2.04967985]
[1759497216473,0.93901302,4472.5,4472.4,0.84864]
[1759497217672,0.93901302,4472.5,4472.4,1.18834]
[1759497219777,0.93901302,4472.5,4472.4,0.84864]
[1759497220070,0.93901302,4472.5,4472.4,0.62614]
[1759497220970,0.93901302,4472.5,4472.4,1.18834]
[1759497221477,0.93901302,4472.5,4472.4,0.84864]
[1759497222577,0.93901302,4472.5,4472.4,1.18834]
[1759497222887,0.93901302,4472.5,4472.4,0.7862]
[1759497224278,0.93901302,4472.5,4472.4,1.18834]
[1759497225481,0.93901302,4472.5,4472.4,0.7862]
[1759497225681,0.93901302,4472.5,4472.4,1.18834]
[1759497226180,0.324,4472.1,4472.0,1.60581501]
[1759497226379,0.4353,4471.9,4471.8,0.6247]
[1759497226575,0.7593,4471.9,4471.8,1.1884]
[1759497227479,0.7593,4471.9,4471.8,1.4125]
[1759497229986,0.7593,4471.9,4471.8,0.224]
[1759497230187,0.7593,4471.9,4471.8,1.42995396]
[1759497230384,0.7593,4471.9,4471.8,0.224]
[1759497231278,0.7593,4471.9,4471.8,1.0103]
[1759497231588,3.9671,4472.0,4471.9,0.7863]
[1759497231783,3.9671,4472.0,4471.8,0.224]
[1759497231784,0.7593,4471.9,4471.8,0.224]
[1759497232087,0.7593,4471.9,4471.8,1.02750012]
[1759497232487,0.7593,4471.9,4471.8,0.224]
[1759497233185,0.8876,4471.5,4471.4,0.80350012]
[1759497233383,0.324,4471.3,4471.0,1.02750012]
[1759497233584,0.4353,4471.1,4471.0,0.224]
[1759497233784,0.4353,4471.1,4470.2,0.3397]
[1759497233785,0.5636,4471.0,4470.5,0.80350012]
[1759497233980,0.8876,4470.5,4470.4,0.80350012]
[1759497234188,0.8876,4470.5,4470.4,1.02750012]
[1759497234390,0.8876,4470.5,4470.4,0.4465]
[1759497234693,0.8876,4470.5,4470.4,0.224]
[1759497235289,5.8876,4470.5,4470.4,0.224]
[1759497236284,5.8876,4470.5,4470.0,0.00235834]
[1759497236484,3.9671,4470.1,4470.0,0.22635834]
[1759497237586,4.36945,4470.1,4470.0,0.22635834]
[1759497239890,4.36945,4470.1,4470.0,0.00235834]
[1759497240293,0.7593,4470.1,4470.0,0.78865834]
[1759497240786,0.2233,4470.3,4470.2,0.7863]
[1759497241185,0.5473,4470.3,4470.2,0.7863]
[1759497241788,0.94964,4470.3,4470.2,0.7863]
[1759497242388,0.94964,4470.3,4470.2,1.18864]
[1759497242389,0.5473,4470.3,4470.2,1.18864]
[1759497242687,0.3277,4470.9,4470.7,0.3402]
[1759497242892,0.3277,4470.9,4470.8,0.9967]
[1759497243281,0.5538,4470.9,4470.8,0.9967]
[1759497246291,0.7689,4470.9,4470.8,0.4425]
[1759497246490,0.7689,4470.9,4470.5,0.224]
[1759497246791,0.3277,4470.8,4470.5,0.5642]
[1759497246992,3.649,4470.7,4470.6,0.2185]
[1759497247492,3.9767,4470.7,4470.6,0.2185]
[1759497247894,3.9767,4470.7,4470.5,0.224]
[1759497262701,3.9767,4470.7,4470.6,0.80350012]
[1759497262902,3.9767,4470.7,4470.5,1.02750012]
[1759497263208,0.7689,4470.6,4470.5,1.02750012]
[1759497264804,0.7689,4470.6,4470.5,1.02200012]
[1759497265011,0.7689,4470.6,4470.5,0.2185]
[1759497267309,0.7689,4470.6,4470.5,0.7462]
[1759497268010,0.7689,4470.6,4470.5,1.95215396]
[1759497268199,0.7689,4470.6,4470.5,0.7462]
[1759497268404,0.5538,4470.6,4470.5,1.95215396]
[1759497269210,0.7581,4470.6,4470.5,1.95215396]
[1759497271302,3.6286,4471.2,4471.1,0.7353]
[1759497271500,3.2078,4471.2,4471.1,0.7353]
[1759497271904,3.7456,4471.2,4471.1,0.7353]
[1759497272106,0.3213,4471.4,4471.2,0.40225]
[1759497272408,0.738,4471.5,4471.4,0.4454]
[1759497272606,0.8618,4471.5,4471.4,0.4454]
[1759497272808,0.8618,4471.5,4471.4,0.7818]
[1759497274311,0.738,4471.5,4471.4,0.7818]
[1759497274710,0.738,4471.5,4471.4,1.58611311]
[1759497275313,0.738,4471.5,4471.4,0.7818]
[1759497276108,0.738,4471.5,4471.4,1.58611311]
[1759497276310,0.738,4471.5,4471.4,0.7818]
[1759497276510,0.738,4471.5,4471.4,1.58611311]
[1759497277419,0.738,4471.5,4471.4,0.7818]
[1759497277817,0.8618,4471.5,4471.3,1.02831311]
[1759497278119,0.738,4471.3,4471.2,0.80431311]
[1759497278519,0.738,4471.3,4471.2,1.02671311]
[1759497279721,0.5301,4471.3,4471.2,1.58611311]
[1759497280222,0.738,4471.3,4471.2,1.58611311]
[1759497281319,0.738,4471.3,4471.2,1.58512798]
[1759497283323,0.5301,4471.6,4471.5,0.4454]
[1759497283529,0.738,4471.6,4471.5,0.7818]
[1759497286528,0.3213,4471.9,4471.6,0.3364]
[1759497286726,0.5301,4471.9,4471.8,0.7818]
[1759497287025,0.738,4471.9,4471.8,1.0058]
[1759497287733,0.738,4471.9,4471.8,1.80912798]
[1759497288031,0.738,4471.9,4471.8,1.0058]
[1759497295237,5.738,4471.9,4471.8,0.224]
[1759497295531,0.1238,4470.5,4470.4,1.20684049]
[1759497295725,0.3213,4470.2,4470.1,1.20684049]
[1759497295924,0.3213,4470.2,4470.1,0.2224]
[1759497295925,0.738,4470.2,4470.1,0.2224]
[1759497296122,0.738,4470.2,4470.0,1.20919883]
[1759497296123,0.738,4470.2,4470.0,0.00235834]
[1759497299327,1.14035,4470.1,4470.0,0.00235834]
[1759497302031,1.14035,4470.1,4470.0,0.20855834]
[1759497302939,1.14035,4470.1,4470.0,0.51325834]
[1759497305234,1.14035,4470.1,4470.0,0.20855834]
[1759497305736,1.14035,4470.1,4470.0,0.00235834]
[1759497306341,1.16444,4469.1,4469.0,0.2062]
[1759497307238,1.16636097,4469.1,4469.0,0.20808414]
[1759497308134,1.16636097,4469.1,4469.0,0.00188414]
[1759497309640,0.97174,4468.0,4467.8,3.2078]
[1759497309941,0.2174,4467.8,4467.7,0.2062]
[1759497310141,1.16456,4467.8,4467.7,0.2062]
[1759497310734,1.16456,4467.8,4467.7,0.00264479]
[1759497310735,0.762,4467.8,4467.7,0.00264479]
[1759497310942,0.762,4467.8,4467.7,0.20884479]
[1759497311840,0.2209,4468.4,4468.3,1.12951]
[1759497312047,1.00607,4469.3,4468.3,1.12951]
[1759497312048,0.3237,4468.6,4468.3,1.12951]
[1759497312237,0.4025,4468.5,4468.4,0.3047]
[1759497312542,0.5446,4468.5,4468.4,0.727]
[1759497313048,0.2209,4468.5,4468.4,0.727]
[1759497314647,0.5446,4469.0,4468.9,0.4223]
[1759497314842,0.00192097,4469.1,4469.0,0.8592]
[1759497315243,0.00192097,4469.1,4469.0,5.8592]
[1759497315745,0.00192097,4469.1,4469.0,0.8592]
[1759497315942,3.2078,4470.0,4469.9,0.3047]
[1759497316148,3.7524,4470.0,4469.9,0.727]
[1759497316343,3.9698,4470.0,4469.9,0.727]
[1759497316643,1.16439,4469.6,4469.5,0.224]
[1759497316837,1.16628214,4469.6,4469.5,0.224]
[1759497317042,1.16628214,4469.6,4469.1,0.3047]
[1759497317043,0.762,4469.2,4469.1,0.727]
[1759497317536,0.3237,4469.5,4469.4,0.2062]
[1759497317736,0.00189214,4469.6,4469.5,0.3047]
[1759497318050,0.00189214,4469.6,4469.5,0.727]
[1759497318246,0.54649214,4469.6,4469.5,0.727]
[1759497318445,0.76389214,4469.6,4469.5,0.727]
[1759497318748,0.76389214,4469.6,4469.5,0.4223]
[1759497319948,0.76389214,4469.6,4469.5,0.727]
[1759497321545,0.00189214,4469.6,4469.5,6.0832]
[1759497324449,0.00189214,4469.6,4469.5,7.29004049]
[1759497325348,0.00189214,4469.6,4469.5,6.0832]
[1759497327145,0.00189214,4469.6,4469.5,46.8832]
[1759497328247,0.77649214,4469.6,4469.5,1.42650537]
[1759497328455,0.77649214,4469.6,4469.5,0.224]
[1759497329341,0.4634,4469.5,4469.3,1.20250537]
[1759497329550,0.7746,4469.3,4469.2,3.2078]
[1759497329750,0.7746,4469.3,4469.2,3.4318]
[1759497330353,0.7746,4469.3,4469.2,0.224]
[1759497330543,1.17702,4469.3,4469.2,0.224]
[1759497331852,6.17702,4469.3,4469.2,0.224]
[1759497332154,0.7434,4468.8,4468.7,4.62920537]
[1759497332355,0.7434,4468.8,4468.7,4.85320537]
[1759497332850,0.7434,4468.8,4468.7,5.06060537]
[1759497333153,0.7434,4468.8,4468.7,5.39610537]
[1759497334752,0.7434,4468.8,4468.7,4.85320537]
[1759497335058,0.7434,4468.8,4468.7,4.63430537]
[1759497335355,0.7434,4468.8,4468.7,4.85320537]
[1759497335750,0.7434,4468.8,4468.7,5.39610537]
[1759497337355,0.7434,4468.8,4468.7,5.79858537]
[1759497339458,1.14587,4468.8,4468.7,5.79858537]
[1759497340950,1.14587,4468.8,4468.7,1.42650537]
[1759497341155,1.14587,4468.8,4468.7,0.224]
[1759497341557,1.14587,4468.8,4468.7,0.4429]
[1759497343962,1.14587,4468.8,4468.7,1.64540537]
[1759497344556,0.5527,4468.5,4468.4,1.20250537]